fUST/lending_fUST_20241229
["ID","MTS","AMOUNT","RATE_DAILY","PERIOD"]
[347002551,1735462173169,-500.33973294,0.00010081,2]
[347002552,1735462173192,-500.0,0.00010101,2]
[347002553,1735462173216,-500.0,0.00010101,2]
[347002554,1735462173241,-500.0,0.00010101,2]
[347002555,1735462173265,-500.0,0.00010102,2]
[347002556,1735462173292,-500.0,0.00010102,2]
[347002557,1735462173316,-500.0,0.00010102,2]
[347002558,1735462173339,-500.0,0.00010102,2]
[347002559,1735462173362,-500.0,0.00010102,2]
[347002560,1735462173384,-488.54873319,0.00010102,2]
[347002561,1735462173407,-500.0,0.00010102,2]
[347002562,1735462173430,-500.0,0.00010102,2]
[347002563,1735462173453,-500.0,0.00010102,2]
[347002564,1735462173476,-500.0,0.00010102,2]
[347002565,1735462173500,-500.0,0.00010102,2]
[347002566,1735462173523,-500.0,0.00010102,2]
[347002567,1735462173546,-1106.37,0.00010102,2]
[347002568,1735462173569,-500.0,0.00010102,2]
[347002569,1735462173593,-725.86,0.00010102,2]
[347002570,1735462173616,-500.0,0.00010102,2]
[347002571,1735462173703,-500.0,0.00010102,2]
[347002572,1735462173727,-500.0,0.00010102,2]
[347002573,1735462173751,-500.0,0.00010102,2]
[347002574,1735462173776,-500.0,0.00010102,2]
[347002575,1735462173801,-500.0,0.00010102,2]
[347002576,1735462173824,-500.0,0.00010102,2]
[347002577,1735462173847,-500.0,0.00010102,2]
[347002578,1735462173871,-500.0,0.00010102,2]
[347002579,1735462173893,-500.0,0.00010102,2]
[347002580,1735462173917,-501.21,0.00010102,2]
[347002581,1735462173941,-1828.75,0.00010102,2]
[347002582,1735462173970,-1210.23,0.00010102,2]
[347002583,1735462173993,-520.74,0.00010102,2]
[347002584,1735462174018,-500.0,0.00010102,2]
[347002585,1735462174043,-500.0,0.00010102,2]
[347002586,1735462174067,-500.0,0.00010102,2]
[347002587,1735462174091,-500.0,0.00010102,2]
[347002588,1735462174115,-500.0,0.00010102,2]
[347002589,1735462174137,-500.0,0.00010102,2]
[347002590,1735462174160,-500.0,0.00010102,2]
[347002591,1735462174183,-690.49,0.00010102,2]
[347002592,1735462174207,-20010.53,0.00010102,2]
[347002593,1735462174229,-500.0,0.00010102,2]
[347002594,1735462174252,-909.54,0.00010102,2]
[347002595,1735462174273,-500.0,0.00010102,2]
[347002596,1735462174296,-500.0,0.00010102,2]
[347002597,1735462174320,-500.0,0.00010102,2]
[347002598,1735462174343,-817.3,0.00010102,2]
[347002599,1735462174369,-505.81,0.00010102,2]
[347002600,1735462174395,-500.0,0.00010102,2]
[347002601,1735462174421,-550.85,0.00010102,2]
[347002602,1735462174451,-764.72,0.00010102,2]
[347002603,1735462174476,-500.0,0.00010102,2]
[347002604,1735462174501,-500.0,0.00010102,2]
[347002605,1735462174527,-2396.2,0.00010102,2]
[347002606,1735462174553,-662.28,0.00010102,2]
[347002607,1735462174577,-500.0,0.00010102,2]
[347002608,1735462174600,-501.60497127,0.00010102,2]
[347002609,1735462174624,-500.0,0.00010102,2]
[347002610,1735462174649,-865.52,0.00010102,2]
[347002611,1735462174673,-500.0,0.00010102,2]
[347002612,1735462174696,-500.0,0.00010102,2]
[347002613,1735462174718,-500.0,0.00010102,2]
[347002614,1735462174740,-500.0,0.00010103,2]
[347002615,1735462174764,-500.0,0.00010103,2]
[347002616,1735462174787,-500.0,0.00010103,2]
[347002617,1735462174859,-500.0,0.00010103,2]
[347002618,1735462174888,-500.0,0.00010103,2]
[347002619,1735462174913,-500.0,0.00010103,2]
[347002620,1735462174936,-500.0,0.00010103,2]
[347002621,1735462174964,-500.0,0.00010103,2]
[347002622,1735462174989,-500.0,0.00010103,2]
[347002623,1735462175013,-500.0,0.00010103,2]
[347002624,1735462175037,-500.0,0.00010103,2]
[347002625,1735462175062,-500.0,0.00010103,2]
[347002626,1735462175086,-500.0,0.00010103,2]
[347002627,1735462175108,-500.0,0.00010103,2]
[347002628,1735462175132,-500.0,0.00010103,2]
[347002629,1735462175155,-500.0,0.00010103,2]
[347002630,1735462175180,-500.0,0.00010103,2]
[347002631,1735462175205,-500.0,0.00010103,2]
[347002632,1735462175232,-500.0,0.00010103,2]
[347002633,1735462175256,-500.0,0.00010103,2]
[347002634,1735462175279,-500.0,0.00010103,2]
[347002635,1735462175301,-500.0,0.00010103,2]
[347002636,1735462175323,-500.0,0.00010103,2]
[347002637,1735462175346,-500.0,0.00010103,2]
[347002638,1735462175369,-500.0,0.00010103,2]
[347002639,1735462175393,-500.0,0.00010103,2]
[347002640,1735462175419,-500.0,0.00010103,2]
[347002641,1735462175442,-500.0,0.00010103,2]
[347002642,1735462175465,-344.30310584,0.00010103,2]
[347002643,1735462175489,-500.0,0.00010103,2]
[347002644,1735462175512,-500.0,0.00010103,2]
[347002645,1735462175536,-503.61521085,0.00010103,2]
[347002646,1735462175558,-500.0,0.00010103,2]
[347002647,1735462175582,-500.0,0.00010103,2]
[347002648,1735462175605,-500.0,0.00010103,2]
[347002649,1735462175627,-500.0,0.00010103,2]
[347002650,1735462175650,-500.0,0.00010103,2]
[347002651,1735462175672,-507.60873035,0.00010103,2]
[347002652,1735462175696,-500.0,0.00010103,2]
[347002653,1735462175721,-500.0,0.00010103,2]
[347002654,1735462175745,-500.0,0.00010103,2]
[347002655,1735462175769,-500.0,0.00010103,2]
[347002656,1735462175793,-500.0,0.00010103,2]
[347002657,1735462175815,-500.0,0.00010103,2]
[347002658,1735462175838,-500.0,0.00010103,2]
[347002659,1735462175861,-500.0,0.00010103,2]
[347002660,1735462175885,-500.0,0.00010103,2]
[347002661,1735462175913,-500.0,0.00010103,2]
[347002662,1735462175994,-500.0,0.00010103,2]
[347002663,1735462176022,-1227.01,0.00010103,2]
[347002664,1735462176049,-3867.82,0.00010103,2]
[347002665,1735462176072,-500.0,0.00010104,2]
[347002666,1735462176094,-587.41004062,0.00010104,2]
[347002667,1735462176119,-432.80755561,0.00010104,2]
[347002668,1735462176141,-500.0,0.00010104,2]
[347002669,1735462176163,-341.66709047,0.00010104,2]
[347002670,1735462176185,-500.0,0.00010104,2]
[347002671,1735462176207,-467.03768174,0.00010104,2]
[347002672,1735462176231,-500.0,0.00010104,2]
[347002673,1735462176254,-500.0,0.00010104,2]
[347002674,1735462176276,-588.45812716,0.00010104,2]
[347002675,1735462176299,-605.75,0.00010104,2]
[347002676,1735462176321,-500.0,0.00010104,2]
[347002677,1735462176347,-500.0,0.00010104,2]
[347002678,1735462176371,-3574.54,0.00010107,2]
[347002679,1735462176394,-500.0,0.00010107,2]
[347002680,1735462176419,-500.0,0.00010107,2]
[347002681,1735462176444,-3224.71,0.00010108,2]
[347002682,1735462176467,-420.0,0.00010205,2]
[347002683,1735462176491,-500.0,0.00010312,2]
[347002684,1735462176514,-500.0,0.00010375,2]
[347002685,1735462176537,-500.0,0.00010375,2]
[347002686,1735462176559,-500.0,0.00010376,2]
[347002687,1735462176582,-500.0,0.00010376,2]
[347002688,1735462176606,-500.0,0.00010376,2]
[347002689,1735462176628,-500.0,0.00010376,2]
[347002690,1735462176650,-500.0,0.00010376,2]
[347002691,1735462176673,-500.0,0.00010376,2]
[347002692,1735462176695,-500.0,0.00010376,2]
[347002693,1735462176722,-1106.37,0.00010376,2]
[347002694,1735462176745,-500.0,0.00010376,2]
[347002695,1735462176770,-725.86,0.00010376,2]
[347002696,1735462176793,-500.0,0.00010376,2]
[347002697,1735462176818,-500.0,0.00010376,2]
[347002698,1735462176840,-500.0,0.00010376,2]
[347002699,1735462176865,-500.0,0.00010376,2]
[347002700,1735462176887,-500.0,0.00010376,2]
[347002701,1735462176910,-500.0,0.00010376,2]
[347002702,1735462176934,-500.0,0.00010376,2]
[347002703,1735462176962,-500.0,0.00010376,2]
[347002704,1735462176987,-500.0,0.00010376,2]
[347002705,1735462177063,-501.21,0.00010376,2]
[347002706,1735462177087,-1828.75,0.00010376,2]
[347002707,1735462177113,-1210.23,0.00010376,2]
[347002708,1735462177137,-520.74,0.00010376,2]
[347002709,1735462177161,-500.0,0.00010376,2]
[347002710,1735462177185,-500.0,0.00010376,2]
[347002711,1735462177208,-500.0,0.00010376,2]
[347002712,1735462177232,-500.0,0.00010376,2]
[347002713,1735462177256,-500.0,0.00010376,2]
[347002714,1735462177281,-524.49053574,0.00010376,2]
[347002715,1735462177305,-196.4803071,0.00010376,2]
[347002716,1735462177329,-690.49,0.00010376,2]
[347002717,1735462177355,-20010.53,0.00010376,2]
[347002718,1735462177378,-909.54,0.00010376,2]
[347002719,1735462177401,-500.0,0.00010376,2]
[347002720,1735462177424,-500.0,0.00010376,2]
[347002721,1735462177447,-500.0,0.00010376,2]
[347002722,1735462177469,-817.3,0.00010376,2]
[347002723,1735462177493,-505.81,0.00010376,2]
[347002724,1735462177516,-500.0,0.00010376,2]
[347002725,1735462177546,-550.85,0.00010376,2]
[347002726,1735462177593,-764.72,0.00010376,2]
[347002727,1735462177640,-500.0,0.00010376,2]
[347002728,1735462177684,-500.0,0.00010376,2]
[347002729,1735462177724,-2396.2,0.00010376,2]
[347002730,1735462177770,-662.28,0.00010376,2]
[347002731,1735462177809,-500.0,0.00010376,2]
[347002732,1735462177846,-500.0,0.00010376,2]
[347002733,1735462177881,-865.52,0.00010376,2]
[347002734,1735462177916,-500.0,0.00010376,2]
[347002735,1735462177952,-500.0,0.00010376,2]
[347002736,1735462177987,-500.0,0.00010376,2]
[347002737,1735462178022,-500.0,0.00010377,2]
[347002738,1735462178057,-500.0,0.00010377,2]
[347002739,1735462178090,-500.0,0.00010377,2]
[347002740,1735462178124,-500.0,0.00010377,2]
[347002741,1735462178159,-500.0,0.00010377,2]
[347002742,1735462178193,-500.0,0.00010377,2]
[347002743,1735462178228,-500.0,0.00010377,2]
[347002744,1735462178261,-500.0,0.00010377,2]
[347002745,1735462178295,-500.0,0.00010377,2]
[347002746,1735462178399,-500.0,0.00010377,2]
[347002747,1735462178421,-500.0,0.00010377,2]
[347002748,1735462178443,-500.0,0.00010377,2]
[347002749,1735462178467,-500.0,0.00010377,2]
[347002750,1735462178488,-570.17847431,0.00010377,2]
[347002751,1735462178510,-500.0,0.00010377,2]
[347002752,1735462178531,-500.0,0.00010377,2]
[347002753,1735462178553,-500.0,0.00010377,2]
[347002754,1735462178576,-500.0,0.00010377,2]
[347002755,1735462178597,-500.0,0.00010377,2]
[347002756,1735462178620,-500.0,0.00010377,2]
[347002757,1735462178642,-500.0,0.00010377,2]
[347002758,1735462178664,-500.0,0.00010377,2]
[347002759,1735462178687,-500.0,0.00010377,2]
[347002760,1735462178710,-500.0,0.00010377,2]
[347002761,1735462178732,-500.0,0.00010377,2]
[347002762,1735462178754,-500.0,0.00010377,2]
[347002763,1735462178777,-500.0,0.00010377,2]
[347002764,1735462178799,-500.0,0.00010377,2]
[347002765,1735462178821,-475.58,0.00010377,2]
[347002766,1735462178842,-500.0,0.00010377,2]
[347002767,1735462178865,-500.0,0.00010377,2]
[347002768,1735462178887,-500.0,0.00010377,2]
[347002769,1735462178912,-500.0,0.00010377,2]
[347002770,1735462178934,-500.0,0.00010377,2]
[347002771,1735462178961,-500.0,0.00010377,2]
[347002772,1735462178983,-500.0,0.00010377,2]
[347002773,1735462179008,-500.0,0.00010377,2]
[347002774,1735462179032,-500.0,0.00010377,2]
[347002775,1735462179054,-500.0,0.00010377,2]
[347002776,1735462179079,-1227.01,0.00010377,2]
[347002777,1735462179103,-3867.82,0.00010377,2]
[347002778,1735462179125,-500.0,0.00010378,2]
[347002779,1735462179147,-500.0,0.00010378,2]
[347002780,1735462179171,-500.0,0.00010378,2]
[347002781,1735462179195,-605.75,0.00010378,2]
[347002782,1735462179219,-500.0,0.00010378,2]
[347002783,1735462179242,-500.0,0.00010378,2]
[347002784,1735462179265,-3574.54,0.00010381,2]
[347002785,1735462179288,-500.0,0.00010381,2]
[347002786,1735462179310,-500.0,0.00010381,2]
[347002787,1735462179333,-3224.71,0.00010382,2]
[347002788,1735462179356,-377.26224012,0.00010383,2]
[347002789,1735462179379,-501.0635328,0.00010383,2]
[347002790,1735462179402,-501.64182603,0.00010383,2]
[347002791,1735462179425,-250.0,0.00010411,2]
[347002792,1735462179448,-500.0,0.00010649,2]
[347002793,1735462179472,-500.0,0.00010649,2]
[347002794,1735462179494,-500.0,0.0001065,2]
[347002795,1735462179518,-500.0,0.0001065,2]
[347002796,1735462179541,-500.0,0.0001065,2]
[347002797,1735462179563,-500.0,0.0001065,2]
[347002798,1735462179587,-500.0,0.0001065,2]
[347002799,1735462179610,-500.0,0.0001065,2]
[347002800,1735462179631,-500.0,0.0001065,2]
[347002801,1735462179654,-1106.37,0.0001065,2]
[347002802,1735462179738,-500.0,0.0001065,2]
[347002803,1735462179762,-725.86,0.0001065,2]
[347002804,1735462179784,-500.0,0.0001065,2]
[347002805,1735462179806,-640.30666777,0.0001065,2]
[347002806,1735462179829,-500.0,0.0001065,2]
[347002807,1735462179851,-500.0,0.0001065,2]
[347002808,1735462179873,-247.08959609,0.0001065,2]
[347002809,1735462179896,-500.0,0.0001065,2]
[347002810,1735462179920,-500.0,0.0001065,2]
[347002811,1735462179945,-500.0,0.0001065,2]
[347002812,1735462179973,-500.0,0.0001065,2]
[347002813,1735462179996,-501.21,0.0001065,2]
[347002814,1735462180021,-1828.75,0.0001065,2]
[347002815,1735462180046,-1210.23,0.0001065,2]
[347002816,1735462180070,-520.74,0.0001065,2]
[347002817,1735462180092,-500.0,0.0001065,2]
[347002818,1735462180115,-500.0,0.0001065,2]
[347002819,1735462180136,-500.0,0.0001065,2]
[347002820,1735462180158,-500.0,0.0001065,2]
[347002821,1735462180181,-500.0,0.0001065,2]
[347002822,1735462180203,-690.49,0.0001065,2]
[347002823,1735462180227,-20010.53,0.0001065,2]
[347002824,1735462180249,-909.54,0.0001065,2]
[347002825,1735462180272,-500.0,0.0001065,2]
[347002826,1735462180298,-500.0,0.0001065,2]
[347002827,1735462180320,-500.0,0.0001065,2]
[347002828,1735462180342,-817.3,0.0001065,2]
[347002829,1735462180364,-505.81,0.0001065,2]
[347002830,1735462180386,-500.0,0.0001065,2]
[347002831,1735462180409,-550.85,0.0001065,2]
[347002832,1735462180434,-764.72,0.0001065,2]
[347002833,1735462180457,-500.0,0.0001065,2]
[347002834,1735462180479,-2396.2,0.0001065,2]
[347002835,1735462180501,-662.28,0.0001065,2]
[347002836,1735462180522,-500.0,0.0001065,2]
[347002837,1735462180544,-287.81,0.0001065,2]
[347002838,1735462180566,-865.52,0.0001065,2]
[347002839,1735462180588,-500.0,0.0001065,2]
[347002840,1735462180610,-500.0,0.0001065,2]
[347002841,1735462180632,-500.0,0.0001065,2]
[347002842,1735462180657,-500.0,0.00010651,2]
[347002843,1735462180679,-500.0,0.00010651,2]
[347002844,1735462180701,-500.0,0.00010651,2]
[347002845,1735462180723,-500.0,0.00010651,2]
[347002846,1735462180744,-500.0,0.00010651,2]
[347002847,1735462180766,-500.0,0.00010651,2]
[347002848,1735462180788,-500.0,0.00010651,2]
[347002849,1735462180809,-500.0,0.00010651,2]
[347002850,1735462180832,-500.0,0.00010651,2]
[347002851,1735462180855,-500.0,0.00010651,2]
[347002852,1735462180879,-500.0,0.00010651,2]
[347002853,1735462180904,-500.0,0.00010651,2]
[347002854,1735462180928,-500.0,0.00010651,2]
[347002855,1735462180951,-500.0,0.00010651,2]
[347002856,1735462181040,-500.0,0.00010651,2]
[347002857,1735462181063,-500.0,0.00010651,2]
[347002858,1735462181085,-500.0,0.00010651,2]
[347002859,1735462181108,-500.0,0.00010651,2]
[347002860,1735462181129,-500.0,0.00010651,2]
[347002861,1735462181151,-500.0,0.00010651,2]
[347002862,1735462181173,-500.0,0.00010651,2]
[347002863,1735462181195,-500.0,0.00010651,2]
[347002864,1735462181217,-500.0,0.00010651,2]
[347002865,1735462181239,-500.0,0.00010651,2]
[347002866,1735462181263,-500.0,0.00010651,2]
[347002867,1735462181285,-500.0,0.00010651,2]
[347002868,1735462181307,-500.0,0.00010651,2]
[347002869,1735462181329,-581.34951148,0.00010651,2]
[347002870,1735462181352,-500.0,0.00010651,2]
[347002871,1735462181374,-500.0,0.00010651,2]
[347002872,1735462181397,-500.0,0.00010651,2]
[347002873,1735462181419,-500.0,0.00010651,2]
[347002874,1735462181442,-500.0,0.00010651,2]
[347002875,1735462181464,-500.0,0.00010651,2]
[347002876,1735462181486,-500.0,0.00010651,2]
[347002877,1735462181510,-1227.01,0.00010651,2]
[347002878,1735462181535,-3867.82,0.00010651,2]
[347002879,1735462181558,-500.0,0.00010652,2]
[347002880,1735462181580,-500.0,0.00010652,2]
[347002881,1735462181603,-500.0,0.00010652,2]
[347002882,1735462181626,-605.75,0.00010652,2]
[347002883,1735462181648,-500.0,0.00010652,2]
[347002884,1735462181670,-500.0,0.00010652,2]
[347002885,1735462181693,-3574.54,0.00010655,2]
[347002886,1735462181717,-500.0,0.00010655,2]
[347002887,1735462181739,-500.0,0.00010655,2]
[347002888,1735462181763,-3224.71,0.00010656,2]
[347002889,1735462181786,-501.55569054,0.00010812,2]
[347002890,1735462181808,-500.0,0.00010923,2]
[347002891,1735462181831,-500.0,0.00010923,2]
[347002892,1735462181854,-212.93571304,0.00010924,2]
[347002893,1735462181877,-500.0,0.00010924,2]
[347002894,1735462181900,-500.0,0.00010924,2]
[347002895,1735462181924,-500.0,0.00010924,2]
[347002896,1735462181948,-500.0,0.00010924,2]
[347002897,1735462181973,-500.0,0.00010924,2]
[347002898,1735462181995,-255.50589953,0.00010924,2]
[347002899,1735462182020,-1106.37,0.00010924,2]
[347002900,1735462182043,-500.0,0.00010924,2]
[347002901,1735462182067,-725.86,0.00010924,2]
[347002902,1735462182089,-500.0,0.00010924,2]
[347002903,1735462182113,-500.0,0.00010924,2]
[347002904,1735462182135,-500.0,0.00010924,2]
[347002905,1735462182157,-500.0,0.00010924,2]
[347002906,1735462182179,-500.0,0.00010924,2]
[347002907,1735462182258,-500.0,0.00010924,2]
[347002908,1735462182282,-500.0,0.00010924,2]
[347002909,1735462182307,-501.21,0.00010924,2]
[347002910,1735462182332,-1828.75,0.00010924,2]
[347002911,1735462182356,-1210.23,0.00010924,2]
[347002912,1735462182378,-520.74,0.00010924,2]
[347002913,1735462182399,-500.0,0.00010924,2]
[347002914,1735462182423,-500.0,0.00010924,2]
[347002915,1735462182445,-500.0,0.00010924,2]
[347002916,1735462182467,-500.0,0.00010924,2]
[347002917,1735462182489,-500.0,0.00010924,2]
[347002918,1735462182512,-690.49,0.00010924,2]
[347002919,1735462182537,-20010.53,0.00010924,2]
[347002920,1735462182561,-909.54,0.00010924,2]
[347002921,1735462182583,-500.0,0.00010924,2]
[347002922,1735462182604,-500.0,0.00010924,2]
[347002923,1735462182626,-500.0,0.00010924,2]
[347002924,1735462182648,-817.3,0.00010924,2]
[347002925,1735462182670,-505.81,0.00010924,2]
[347002926,1735462182693,-500.0,0.00010924,2]
[347002927,1735462182715,-550.85,0.00010924,2]
[347002928,1735462182738,-764.72,0.00010924,2]
[347002929,1735462182761,-500.0,0.00010924,2]
[347002930,1735462182784,-2396.2,0.00010924,2]
[347002931,1735462182807,-662.28,0.00010924,2]
[347002932,1735462182830,-500.0,0.00010924,2]
[347002933,1735462182853,-865.52,0.00010924,2]
[347002934,1735462182874,-500.0,0.00010924,2]
[347002935,1735462182898,-500.0,0.00010924,2]
[347002936,1735462182922,-500.0,0.00010924,2]
[347002937,1735462182948,-500.0,0.00010925,2]
[347002938,1735462182979,-500.0,0.00010925,2]
[347002939,1735462183004,-500.0,0.00010925,2]
[347002940,1735462183026,-238.86029852,0.00010925,2]
[347002941,1735462183048,-500.0,0.00010925,2]
[347002942,1735462183071,-500.0,0.00010925,2]
[347002943,1735462183094,-500.0,0.00010925,2]
[347002944,1735462183119,-500.0,0.00010925,2]
[347002945,1735462183146,-500.0,0.00010925,2]
[347002946,1735462183172,-500.0,0.00010925,2]
[347002947,1735462183195,-500.0,0.00010925,2]
[347002948,1735462183220,-500.0,0.00010925,2]
[347002949,1735462183243,-489.61544061,0.00010925,2]
[347002950,1735462183733,-500.0,9.28e-05,2]
[347002951,1735462183755,-500.0,9.281e-05,2]
[347002952,1735462183776,-500.0,9.554e-05,2]
[347002953,1735462183796,-500.0,9.555e-05,2]
[347002954,1735462183825,500.0,9.555e-05,2]
[347002955,1735462183892,502.63721505,9.279e-05,2]
[347002956,1735462183998,500.0,9.279e-05,2]
[347002957,1735462184156,500.0,9.28e-05,2]
[347002958,1735462184196,500.0,9.554e-05,2]
[347002959,1735462184248,500.0,9.281e-05,2]
[347002960,1735462184364,500.0,9.28e-05,2]
[347002961,1735462184404,500.0,9.554e-05,2]
[347002962,1735462184501,500.0,9.279e-05,2]
[347002963,1735462184590,500.0,9.281e-05,2]
[347002964,1735462184629,500.0,9.555e-05,2]
[347002965,1735462184662,500.0,9.282e-05,2]
[347002966,1735462184760,500.0,9.28e-05,2]
[347002967,1735462184795,500.0,9.554e-05,2]
[347002968,1735462184838,500.0,9.28e-05,2]
[347002969,1735462184979,501.8991332,9.279e-05,2]
[347002970,1735462185009,500.0,9.554e-05,2]
[347002971,1735462185049,503.09686939,9.279e-05,2]
[347002972,1735462185093,500.0,9.279e-05,2]
[347002973,1735462185221,5.60472501,9.282e-05,2]
[347002974,1735462194064,-500.0,9.279e-05,2]
[347002975,1735462194091,-138.15006138,9.279e-05,2]
[347003263,1735462238003,-300.0,9.278e-05,2]
[347003265,1735462238013,-361.84993862,9.279e-05,2]
[347003267,1735462238022,-500.0,9.279e-05,2]
[347003269,1735462238032,-245.38611398,9.279e-05,2]
[347003271,1735462238043,-287.94043746,9.279e-05,2]
[347003273,1735462238055,-216.78738841,9.279e-05,2]
[347003275,1735462238064,-503.58616805,9.279e-05,2]
[347003277,1735462238073,-1327.49506104,9.279e-05,2]
[347003279,1735462238110,-218.34493896,9.279e-05,2]
[347003280,1735462238120,-500.0,9.279e-05,2]
[347003281,1735462238130,-500.0,9.279e-05,2]
[347003282,1735462238139,-483.76016164,9.279e-05,2]
[347003284,1735462238148,-500.0,9.279e-05,2]
[347003286,1735462238157,-502.07393106,9.279e-05,2]
[347003288,1735462238166,-501.29592126,9.279e-05,2]
[347003291,1735462238176,-501.7123401,9.279e-05,2]
[347003293,1735462238185,-502.86452252,9.279e-05,2]
[347003295,1735462238194,-500.0,9.279e-05,2]
[347003297,1735462238203,-500.0,9.279e-05,2]
[347003299,1735462238212,-500.0,9.279e-05,2]
[347003301,1735462238222,-501.91012891,9.279e-05,2]
[347003303,1735462238231,-500.0,9.279e-05,2]
[347003305,1735462238240,-502.33333077,9.279e-05,2]
[347003307,1735462238250,-237.60436465,9.279e-05,2]
[347003309,1735462238259,-500.0,9.279e-05,2]
[347003311,1735462238268,-500.0,9.279e-05,2]
[347003313,1735462238278,-500.0,9.279e-05,2]
[347003315,1735462238287,-500.0,9.279e-05,2]
[347003317,1735462238297,-500.0,9.28e-05,2]
[347003319,1735462238306,-500.0,9.28e-05,2]
[347003321,1735462238316,-313.42146622,9.28e-05,2]
[347003323,1735462238326,-500.0,9.28e-05,2]
[347003324,1735462238335,-500.0,9.28e-05,2]
[347003325,1735462238344,-500.0,9.28e-05,2]
[347003326,1735462238353,-500.0,9.28e-05,2]
[347003327,1735462238364,-753.88,9.28e-05,2]
[347003328,1735462238373,-500.0,9.28e-05,2]
[347003329,1735462238383,-500.0,9.28e-05,2]
[347003330,1735462238392,-500.0,9.28e-05,2]
[347003331,1735462238401,-500.0,9.28e-05,2]
[347003332,1735462238411,-500.0,9.28e-05,2]
[347003333,1735462238420,-500.0,9.28e-05,2]
[347003334,1735462238429,-14707.98,9.28e-05,2]
[347003335,1735462238439,-500.0,9.28e-05,2]
[347003336,1735462238449,-500.0,9.281e-05,2]
[347003337,1735462238458,-500.0,9.281e-05,2]
[347003338,1735462238467,-500.0,9.281e-05,2]
[347003339,1735462238477,-500.0,9.281e-05,2]
[347003340,1735462238486,-153.72,9.282e-05,2]
[347003341,1735462238496,-4301.14,9.282e-05,2]
[347003342,1735462238506,-4301.14,9.282e-05,2]
[347003343,1735462238515,-4301.14,9.282e-05,2]
[347003344,1735462238524,-4301.14,9.282e-05,2]
[347003345,1735462238534,-500.0,9.282e-05,2]
[347003346,1735462238544,-4301.14,9.283e-05,2]
[347003347,1735462238553,-4301.14,9.284e-05,2]
[347003348,1735462238563,-4301.14,9.284e-05,2]
[347003349,1735462238573,-4301.14,9.286e-05,2]
[347003350,1735462238584,-500.0,9.553e-05,2]
[347003351,1735462238593,-1545.84,9.553e-05,2]
[347003352,1735462238602,-500.0,9.553e-05,2]
[347003353,1735462238612,-541.37097843,9.553e-05,2]
[347003354,1735462238621,-500.0,9.553e-05,2]
[347003355,1735462238630,-174.58378019,9.553e-05,2]
[347003356,1735462238640,-500.0,9.553e-05,2]
[347003357,1735462238650,-500.0,9.553e-05,2]
[347003358,1735462238660,-500.0,9.553e-05,2]
[347003359,1735462238670,-500.0,9.554e-05,2]
[347003360,1735462238679,-500.0,9.554e-05,2]
[347003361,1735462238689,-500.0,9.554e-05,2]
[347003362,1735462238699,-753.88,9.554e-05,2]
[347003363,1735462238708,-500.0,9.554e-05,2]
[347003364,1735462238718,-500.0,9.554e-05,2]
[347003365,1735462238727,-500.0,9.554e-05,2]
[347003366,1735462238736,-500.0,9.554e-05,2]